fUSD/lending_fUSD_20250526
["ID","MTS","AMOUNT","RATE_DAILY","PERIOD"]
[362429824,1748285462271,-420.0,0.00032876,2]
[362429825,1748285462280,-421.67780568,0.00032876,2]
[362429826,1748285462289,-420.0,0.00032876,2]
[362429827,1748285462299,-420.0,0.00032876,2]
[362429828,1748285462310,-423.65638042,0.00032876,2]
[362429829,1748285462319,-424.60777808,0.00032876,2]
[362429830,1748285462329,-420.0,0.00032876,2]
[362429831,1748285462338,-3568.82,0.00032876,2]
[362429832,1748285462347,-420.0,0.00032876,2]
[362429833,1748285462357,-420.0,0.00032876,2]
[362429834,1748285462366,-420.0,0.00032876,2]
[362429835,1748285462375,-422.68323418,0.00032876,2]
[362429836,1748285462385,-2429.79,0.00032876,2]
[362429837,1748285462394,-156.305884,0.00032876,7]
[362429838,1748285462403,-420.0,0.00032876,2]
[362429839,1748285462413,-420.0,0.00032876,2]
[362429840,1748285462422,-372.44590182,0.00032876,2]
[362429841,1748285462431,-420.0,0.00032876,2]
[362429842,1748285462441,-420.0,0.00032876,2]
[362429843,1748285462451,-156.305875,0.00032876,7]
[362429844,1748285462459,-420.0,0.00032876,2]
[362429845,1748285462469,-2687.44,0.00032876,2]
[362429846,1748285462478,-420.0,0.00032876,2]
[362429847,1748285462488,-420.0,0.00032876,2]
[362429848,1748285462497,-420.0,0.00032876,2]
[362429849,1748285462506,-420.0,0.00032876,2]
[362429850,1748285462515,-421.84831441,0.00032876,2]
[362429851,1748285462524,-420.0,0.00032876,2]
[362429852,1748285462534,-420.0,0.00032876,2]
[362429853,1748285462543,-388.30771697,0.00032876,2]
[362429854,1748285462553,-420.0,0.00032876,2]
[362429855,1748285462562,-420.0,0.00032876,2]
[362429856,1748285462572,-420.0,0.00032876,2]
[362429857,1748285462581,-420.0,0.00032876,2]
[362429858,1748285462590,-420.0,0.00032876,2]
[362429859,1748285462599,-300.0,0.00032876,2]
[362429860,1748285462608,-420.0,0.00032876,2]
[362429861,1748285462617,-2675.74,0.00032876,2]
[362429862,1748285462627,-420.0,0.00032876,2]
[362429863,1748285462640,-420.0,0.00032876,2]
[362429864,1748285462649,-420.0,0.00032876,2]
[362429865,1748285462659,-500.0,0.00032876,2]
[362429866,1748285462668,-420.0,0.00032876,2]
[362429867,1748285462678,-425.25584797,0.00032876,2]
[362429868,1748285462688,-420.0,0.00032876,2]
[362429869,1748285462697,-278.15244619,0.00032876,2]
[362429870,1748285462707,-420.0,0.00032876,2]
[362429871,1748285462719,-420.0,0.00032876,2]
[362429872,1748285462728,-423.66968085,0.00032876,2]
[362429873,1748285462738,-420.0,0.00032876,2]
[362429874,1748285462747,-525.48086813,0.00032876,2]
[362429875,1748285462757,-420.0,0.00032876,2]
[362429876,1748285462766,-420.0,0.00032876,2]
[362429877,1748285462775,-420.0,0.00032876,2]
[362429878,1748285462784,-554.8,0.00032876,2]
[362429879,1748285462793,-420.0,0.00032876,2]
[362429880,1748285462802,-420.0,0.00032876,2]
[362429881,1748285462811,-420.0,0.00032876,2]
[362429882,1748285462821,-420.0,0.00032876,2]
[362429883,1748285462830,-3807.68,0.00032876,2]
[362429884,1748285462839,-420.0,0.00032876,2]
[362429885,1748285462849,-420.0,0.00032876,2]
[362429886,1748285462858,-420.0,0.00032876,2]
[362429887,1748285462867,-420.0,0.00032876,2]
[362429888,1748285462877,-420.0,0.00032876,2]
[362429889,1748285462886,-420.0,0.00032876,2]
[362429890,1748285462895,-435.58841758,0.00032876,2]
[362429891,1748285462904,-421.60998222,0.00032876,2]
[362429892,1748285462913,-420.0,0.00032876,2]
[362429893,1748285462922,-420.0,0.00032876,2]
[362429894,1748285462932,-423.82207257,0.00032876,2]
[362429895,1748285462940,-420.0,0.00032876,2]
[362429896,1748285462950,-423.35999193,0.00032876,2]
[362429897,1748285462959,-371.17538257,0.00032876,2]
[362429898,1748285462968,-420.0,0.00032876,2]
[362429899,1748285462977,-1363.58,0.00032876,2]
[362429900,1748285462987,-420.0,0.00032876,2]
[362429901,1748285462996,-420.0,0.00032876,2]
[362429902,1748285463005,-422.86470904,0.00032876,2]
[362429903,1748285463015,-1976.47,0.00032876,2]
[362429904,1748285463024,-420.0,0.00032876,2]
[362429905,1748285463034,-420.0,0.00032876,2]
[362429906,1748285463043,-420.40551084,0.00032876,2]
[362429907,1748285463053,-420.0,0.00032876,2]
[362429908,1748285463063,-420.0,0.00032876,2]
[362429909,1748285463072,-420.0,0.00032876,2]
[362429910,1748285463082,-420.95412191,0.00032876,2]
[362429911,1748285463091,-420.0,0.00032876,2]
[362429912,1748285463101,-420.0,0.00032876,2]
[362429913,1748285463110,-420.0,0.00032876,2]
[362429914,1748285463120,-420.0,0.00032876,2]
[362429915,1748285463129,-460.88762366,0.00032876,2]
[362429916,1748285463139,-420.0,0.00032876,2]
[362429917,1748285463148,-420.0,0.00032876,2]
[362429918,1748285463157,-422.85899689,0.00032876,2]
[362429919,1748285463167,-420.0,0.00032876,2]
[362429920,1748285463176,-422.69854678,0.00032876,2]
[362429921,1748285463185,-420.0,0.00032876,2]
[362429922,1748285463194,-420.83998629,0.00032876,2]
[362429923,1748285463203,-420.0,0.00032876,2]
[362429924,1748285463212,-420.0,0.00032876,2]
[362429925,1748285463222,-3592.88,0.00032876,2]
[362429926,1748285463232,-420.0,0.00032876,2]
[362429927,1748285463241,-420.0,0.00032876,2]
[362429928,1748285463251,-420.0,0.00032876,2]
[362429929,1748285463261,-420.0,0.00032876,2]
[362429930,1748285463271,-420.0,0.00032876,2]
[362429931,1748285463281,-420.0,0.00032876,2]
[362429932,1748285463291,-420.0,0.00032876,2]
[362429933,1748285463300,-420.0,0.00032876,2]
[362429934,1748285463310,-420.0,0.00032876,2]
[362429935,1748285463321,-420.0,0.00032876,2]
[362429936,1748285463331,-437.75,0.00032876,2]
[362429937,1748285463340,-420.0,0.00032876,2]
[362429938,1748285463349,-420.0,0.00032876,2]
[362429939,1748285463360,-424.3166174,0.00032876,2]
[362429940,1748285463369,-420.0,0.00032876,2]
[362429941,1748285463379,-420.0,0.00032876,2]
[362429942,1748285463389,-451.76179836,0.00032876,2]
[362429943,1748285463399,-425.70499844,0.00032876,2]
[362429944,1748285463408,-421.33088923,0.00032876,2]
[362429945,1748285463418,-420.0,0.00032876,2]
[362429946,1748285463427,-421.92851231,0.00032876,2]
[362429947,1748285463438,-420.0,0.00032876,2]
[362429948,1748285463448,-420.0,0.00032876,2]
[362429949,1748285463458,-420.0,0.00032876,2]
[362429950,1748285463467,-420.0,0.00032876,2]
[362429951,1748285463477,-420.0,0.00032876,2]
[362429952,1748285463487,-420.0,0.00032876,2]
[362429953,1748285463497,-420.0,0.00032876,2]
[362429954,1748285463507,-420.0,0.00032876,2]
[362429955,1748285463517,-420.0,0.00032876,2]
[362429956,1748285463527,-420.0,0.00032876,2]
[362429957,1748285463537,-420.87799977,0.00032876,2]
[362429958,1748285463546,-420.0,0.00032876,2]
[362429959,1748285463556,-403.11688739,0.00032876,2]
[362429960,1748285463566,-4441.8,0.00032876,2]
[362429961,1748285463575,-1115.05,0.00032876,2]
[362429962,1748285463584,-420.0,0.00032876,2]
[362429963,1748285463594,-423.36534332,0.00032876,2]
[362429964,1748285463604,-420.0,0.00032876,2]
[362429965,1748285463614,-420.0,0.00032876,2]
[362429966,1748285463624,-420.0,0.00032876,2]
[362429967,1748285463636,-420.0,0.00032876,2]
[362429968,1748285463646,-420.92756809,0.00032876,2]
[362429969,1748285463656,-420.0,0.00032876,2]
[362429970,1748285463665,-420.0,0.00032876,2]
[362429971,1748285463675,-421.68278255,0.00032876,2]
[362429972,1748285463685,-420.0,0.00032876,2]
[362429973,1748285463695,-420.0,0.00032876,2]
[362429974,1748285463704,-420.0,0.00032876,2]
[362429975,1748285463715,-420.0,0.00032876,2]
[362429976,1748285463725,-424.2179345,0.00032876,2]
[362429977,1748285463734,-420.0,0.00032876,2]
[362429978,1748285463744,-2551.32,0.00032876,2]
[362429979,1748285463754,-420.0,0.00032876,2]
[362429980,1748285463764,-420.0,0.00032876,2]
[362429981,1748285463774,-420.0,0.00032876,2]
[362429982,1748285463785,-420.0,0.00032876,2]
[362429983,1748285463795,-420.0,0.00032876,2]
[362429984,1748285463804,-420.0,0.00032876,2]
[362429985,1748285463814,-420.0,0.00032876,2]
[362429986,1748285463824,-496.84,0.00032876,2]
[362429987,1748285463833,-420.0,0.00032876,2]
[362429988,1748285463843,-420.0,0.00032876,2]
[362429989,1748285463853,-420.0,0.00032876,2]
[362429990,1748285463863,-420.0,0.00032876,2]
[362429991,1748285463873,-400.92144874,0.00032876,2]
[362429992,1748285463883,-546.19541617,0.00032876,2]
[362429993,1748285463892,-1645.34,0.00032876,2]
[362429994,1748285463903,-420.0,0.00032876,2]
[362429995,1748285463912,-428.50421999,0.00032876,2]
[362429996,1748285463921,-2739.72,0.00032876,2]
[362429997,1748285463932,-422.12542061,0.00032876,2]
[362429998,1748285463941,-3357.46,0.00032876,2]
[362429999,1748285463952,-420.0,0.00032876,2]
[362430000,1748285463962,-420.0,0.00032876,2]
[362430001,1748285463972,-420.0,0.00032876,2]
[362430002,1748285463982,-15711.57,0.00032876,2]
[362430003,1748285463991,-420.0,0.00032876,2]
[362430004,1748285464001,-420.0,0.00032876,2]
[362430005,1748285464010,-420.0,0.00032876,2]
[362430006,1748285464020,-420.0,0.00032876,2]
[362430007,1748285464029,-420.0,0.00032876,2]
[362430008,1748285464039,-420.0,0.00032876,2]
[362430009,1748285464049,-420.0,0.00032876,2]
[362430010,1748285464059,-420.0,0.00032876,2]
[362430011,1748285464069,-428.81726124,0.00032876,2]
[362430012,1748285464079,-420.0,0.00032876,2]
[362430013,1748285464088,-2792.65,0.00032876,2]
[362430014,1748285464098,-422.43413764,0.00032876,2]
[362430015,1748285464108,-250.0,0.00032876,2]
[362430016,1748285464118,-420.0,0.00032876,2]
[362430017,1748285464128,-420.0,0.00032876,2]
[362430018,1748285464138,-420.0,0.00032876,2]
[362430019,1748285464148,-7474.52,0.00032876,2]
[362430020,1748285464158,-420.0,0.00032876,2]
[362430021,1748285464168,-420.0,0.00032876,2]
[362430022,1748285464177,-420.0,0.00032876,2]
[362430023,1748285464187,-420.0,0.00032876,2]
[362430024,1748285464197,-2332.5,0.00032876,2]
[362430025,1748285464206,-2218.11,0.00032876,2]
[362430026,1748285464215,-420.33751721,0.00032876,2]
[362430027,1748285464225,-420.0,0.00032876,2]
[362430028,1748285464235,-420.0,0.00032876,2]
[362430029,1748285464244,-420.0,0.00032876,2]
[362430030,1748285464254,-421.72656608,0.00032876,2]
[362430031,1748285464263,-26598.75,0.00032876,2]
[362430032,1748285464274,-472.19,0.00032876,2]
[362430033,1748285464283,-420.0,0.00032876,2]
[362430034,1748285464293,-420.0,0.00032876,2]
[362430035,1748285464302,-200.0,0.00032876,120]
[362430036,1748285464312,-420.0,0.00032876,2]
[362430037,1748285464322,-420.0,0.00032876,2]
[362430038,1748285464331,-420.0,0.00032876,2]
[362430039,1748285464341,-7301.5,0.00032876,2]
[362430040,1748285464351,-420.0,0.00032876,2]
[362430041,1748285464361,-586.78456203,0.00032876,2]
[362430042,1748285464371,-420.0,0.00032876,2]
[362430043,1748285464380,-420.0,0.00032876,2]
[362430044,1748285464390,-2459.06,0.00032876,2]
[362430045,1748285464400,-420.0,0.00032876,2]
[362430046,1748285464409,-420.0,0.00032876,2]
[362430047,1748285464419,-420.0,0.00032876,2]
[362430048,1748285464429,-420.0,0.00032876,2]
[362430049,1748285464439,-420.0,0.00032876,2]
[362430050,1748285464448,-420.0,0.00032876,2]
[362430051,1748285464647,-420.0,0.00032876,2]
[362430052,1748285464657,-420.0,0.00032876,2]
[362430053,1748285464667,-427.8896569,0.00032876,2]
[362430054,1748285464677,-420.0,0.00032876,2]
[362430055,1748285464687,-421.33735717,0.00032876,2]
[362430056,1748285464697,-420.0,0.00032876,2]
[362430057,1748285464707,-420.0,0.00032876,2]
[362430058,1748285464717,-420.0,0.00032876,2]
[362430059,1748285464727,-400.0,0.00032876,2]
[362430060,1748285464737,-420.0,0.00032876,2]
[362430061,1748285464747,-420.0,0.00032876,2]
[362430062,1748285464756,-420.0,0.00032876,2]
[362430063,1748285464766,-7048.79,0.00032876,2]
[362430064,1748285464776,-420.0,0.00032876,2]
[362430065,1748285464785,-420.0,0.00032876,2]
[362430066,1748285464795,-422.17876494,0.00032876,2]
[362430067,1748285464805,-420.0,0.00032876,2]
[362430068,1748285464814,-1928.9,0.00032876,2]
[362430069,1748285464825,-791.57,0.00032876,2]
[362430070,1748285464836,-11708.05,0.00032876,2]
[362430071,1748285464846,-424.10324715,0.00032876,2]
[362430072,1748285464855,-420.0,0.00032876,2]
[362430073,1748285464865,-420.0,0.00032876,2]
[362430074,1748285464875,-420.0,0.00032876,2]
[362430075,1748285464885,-455.94,0.00032876,2]
[362430076,1748285464895,-420.0,0.00032876,2]
[362430077,1748285464905,-420.0,0.00032876,2]
[362430078,1748285464916,-420.0,0.00032876,2]
[362430079,1748285464928,-420.0,0.00032876,2]
[362430080,1748285464939,-420.0,0.00032876,2]
[362430081,1748285464952,-366.3535236,0.00032876,2]
[362430082,1748285464962,-998.68,0.00032876,2]
[362430083,1748285464972,-420.0,0.00032876,2]
[362430084,1748285464983,-403.11369482,0.00032876,2]
[362430085,1748285464993,-3112.87,0.00032876,2]
[362430086,1748285465003,-3764.0,0.00032876,2]
[362430087,1748285465012,-420.0,0.00032876,2]
[362430088,1748285465022,-420.0,0.00032876,2]
[362430089,1748285465031,-420.0,0.00032876,2]
[362430090,1748285465041,-420.0,0.00032876,2]
[362430091,1748285465050,-420.0,0.00032876,2]
[362430092,1748285465061,-3865.43,0.00032876,2]
[362430093,1748285465071,-1605.73,0.00032876,2]
[362430094,1748285465080,-3305.47,0.00032876,2]
[362430095,1748285465090,-420.0,0.00032876,2]
[362430096,1748285465100,-420.0,0.00032876,2]
[362430097,1748285465109,-420.0,0.00032876,2]
[362430098,1748285465119,-6255.05,0.00032876,2]
[362430099,1748285465130,-420.0,0.00032876,2]
[362430100,1748285465139,-420.9394527,0.00032876,2]
[362430101,1748285465149,-420.0,0.00032876,2]
[362430102,1748285465159,-400.0,0.00032876,2]
[362430103,1748285465169,-420.0,0.00032876,2]
[362430104,1748285465179,-420.0,0.00032876,2]
[362430105,1748285465189,-420.0,0.00032876,2]
[362430106,1748285465198,-420.0,0.00032876,2]
[362430107,1748285465207,-400.0,0.00032876,2]
[362430108,1748285465219,-420.43668787,0.00032876,2]
[362430109,1748285465228,-420.0,0.00032876,2]
[362430110,1748285465238,-400.0,0.00032876,2]
[362430111,1748285465249,-420.0,0.00032876,2]
[362430112,1748285465258,-420.0,0.00032876,2]
[362430113,1748285465269,-420.0,0.00032876,2]
[362430114,1748285465278,-445.04147942,0.00032876,2]
[362430115,1748285465288,-4791.12,0.00032876,2]
[362430116,1748285465299,-420.0,0.00032876,2]
[362430117,1748285465309,-7771.69,0.00032876,2]
[362430118,1748285465319,-420.0,0.00032876,2]
[362430119,1748285465329,-420.0,0.00032876,2]
[362430120,1748285465340,-420.0,0.00032876,2]
[362430121,1748285465350,-420.0,0.00032876,2]
[362430122,1748285465359,-421.9481917,0.00032876,2]
[362430123,1748285465369,-2660.88,0.00032876,2]
[362430124,1748285465379,-1618.71,0.00032876,2]
[362430125,1748285465389,-420.0,0.00032876,2]
[362430126,1748285465399,-420.0,0.00032876,2]
[362430127,1748285465409,-420.0,0.00032876,2]
[362430128,1748285465418,-420.0,0.00032876,2]
[362430129,1748285465428,-27746.33,0.00032876,2]
[362430130,1748285465438,-420.0,0.00032876,2]
[362430131,1748285465447,-420.0,0.00032876,2]
[362430132,1748285465457,-3234.69,0.00032876,2]
[362430133,1748285465466,-420.0,0.00032876,2]
[362430134,1748285465476,-3940.8,0.00032876,2]
[362430135,1748285465486,-420.0,0.00032876,2]
[362430136,1748285465495,-420.0,0.00032876,2]
[362430137,1748285465505,-420.0,0.00032876,2]
[362430138,1748285465514,-420.0,0.00032876,2]
[362430139,1748285465524,-420.0,0.00032876,2]
[362430140,1748285465534,-420.0,0.00032876,2]
[362430141,1748285465543,-420.0,0.00032876,2]
[362430142,1748285465553,-3098.52,0.00032876,2]
[362430143,1748285465562,-3843.18,0.00032876,2]
[362430144,1748285465572,-420.0,0.00032876,2]
[362430145,1748285465582,-420.0,0.00032876,2]
[362430146,1748285465591,-420.0,0.00032876,2]
[362430147,1748285465601,-420.0,0.00032876,2]
[362430148,1748285465610,-420.0,0.00032876,2]
[362430149,1748285465619,-4028.33,0.00032876,2]
[362430150,1748285465629,-500.0,0.00032876,2]
[362430151,1748285465643,-420.0,0.00032876,2]
[362430152,1748285465652,-163331.86,0.00032876,2]
[362430153,1748285465662,-500.0,0.00032876,2]
[362430154,1748285465671,-420.0,0.00032876,2]
[362430155,1748285465683,-500.0,0.00032876,2]
[362430156,1748285465692,-420.0,0.00032876,2]
[362430157,1748285465701,-270.58004213,0.00032876,2]
[362430158,1748285465711,-5797.42,0.00032876,2]
[362430159,1748285465721,-420.0,0.00032876,2]
[362430160,1748285465730,-2655.11,0.00032876,2]
[362430161,1748285465740,-420.0,0.00032876,2]
[362430162,1748285465749,-420.0,0.00032876,2]
[362430163,1748285465759,-4148.37,0.00032876,2]
[362430164,1748285465768,-420.0,0.00032876,2]
[362430165,1748285465778,-420.0,0.00032876,2]
[362430166,1748285465788,-222.071641,0.00032876,2]
[362430167,1748285465797,-3182.76,0.00032876,2]
[362430168,1748285465807,-4130.8,0.00032876,2]
[362430169,1748285465817,-420.0,0.00032876,2]
[362430170,1748285465827,-420.0,0.00032876,2]
[362430171,1748285465836,-420.0,0.00032876,2]
[362430172,1748285465846,-420.0,0.00032876,2]
[362430173,1748285465856,-2519.23,0.00032876,2]
[362430174,1748285465866,-420.0,0.00032876,2]
[362430175,1748285465875,-420.0,0.00032876,2]
[362430176,1748285465886,-970.11,0.00032876,2]
[362430177,1748285465896,-5284.9,0.00032876,2]
[362430178,1748285465910,-420.0,0.00032876,2]
[362430179,1748285465920,-6876.02,0.00032876,2]
[362430180,1748285465930,-2165.38,0.00032876,2]
[362430181,1748285465939,-420.0,0.00032876,2]
[362430182,1748285465949,-420.0,0.00032876,2]
[362430183,1748285465958,-630.42,0.00032876,2]
[362430184,1748285465968,-5203.9,0.00032876,2]
[362430185,1748285465978,-420.0,0.00032876,2]
[362430186,1748285465989,-420.0,0.00032876,2]
[362430187,1748285465998,-420.0,0.00032876,2]
[362430188,1748285466008,-420.0,0.00032876,2]
[362430189,1748285466017,-1532.26,0.00032876,2]
[362430190,1748285466027,-420.0,0.00032876,2]
[362430191,1748285466036,-420.0,0.00032876,2]
[362430192,1748285466045,-422.32586532,0.00032876,2]
[362430193,1748285466055,-420.0,0.00032876,2]
[362430194,1748285466064,-420.0,0.00032876,2]
[362430195,1748285466074,-2700.86,0.00032876,2]
[362430196,1748285466084,-420.0,0.00032876,2]
[362430197,1748285466093,-420.0,0.00032876,2]
[362430198,1748285466103,-420.0,0.00032876,2]
[362430199,1748285466113,-420.0,0.00032876,2]
[362430200,1748285466122,-11043.2,0.00032876,2]
[362430201,1748285466132,-1294.48,0.00032876,2]
[362430202,1748285466141,-3375.02,0.00032876,2]
[362430203,1748285466151,-420.0,0.00032876,2]
[362430204,1748285466161,-420.0,0.00032876,2]
[362430205,1748285466171,-420.0,0.00032876,2]
[362430206,1748285466183,-420.0,0.00032876,2]
[362430207,1748285466192,-420.0,0.00032876,2]
[362430208,1748285466203,-420.0,0.00032876,2]
[362430209,1748285466212,-420.0,0.00032876,2]
[362430210,1748285466222,-420.0,0.00032876,2]
[362430211,1748285466231,-430.71793083,0.00032876,2]
[362430212,1748285466241,-420.0,0.00032876,2]
[362430213,1748285466250,-420.0,0.00032876,2]
[362430214,1748285466260,-420.0,0.00032876,2]
[362430215,1748285466269,-420.0,0.00032876,2]
[362430216,1748285466278,-420.0,0.00032876,2]
[362430217,1748285466287,-420.0,0.00032876,2]
[362430218,1748285466297,-5277.29,0.00032876,2]
[362430219,1748285466307,-420.0,0.00032876,2]
[362430220,1748285466317,-23968.58,0.00032876,2]
[362430221,1748285466328,-408.10241743,0.00032876,2]
[362430222,1748285466339,-420.0,0.00032876,2]
[362430223,1748285466348,-420.0,0.00032876,2]
[362430224,1748285466358,-420.0,0.00032876,2]
[362430225,1748285466368,-420.0,0.00032876,2]
[362430226,1748285466378,-6033.89,0.00032876,2]
[362430227,1748285466389,-438.50768567,0.00032876,2]
[362430228,1748285466398,-420.89177267,0.00032876,2]
[362430229,1748285466408,-8077.55,0.00032876,2]
[362430230,1748285466417,-420.0,0.00032876,2]
[362430231,1748285466428,-420.0,0.00032876,2]
[362430232,1748285466438,-420.0,0.00032876,2]
[362430233,1748285466449,-420.0,0.00032876,2]
[362430234,1748285466459,-263.71266072,0.00032876,2]
[362430235,1748285466469,-15461.91,0.00032876,2]
[362430236,1748285466479,-420.0,0.00032876,2]
[362430237,1748285466489,-420.0,0.00032876,2]
[362430238,1748285466498,-420.0,0.00032876,2]
[362430239,1748285466507,-420.0,0.00032876,2]
[362430240,1748285466517,-420.0,0.00032876,2]
[362430241,1748285466528,-420.0,0.00032876,2]
[362430242,1748285466538,-429.35564567,0.00032876,2]
[362430243,1748285466548,-420.0,0.00032876,2]
[362430244,1748285466558,-17844.17,0.00032876,2]
[362430245,1748285466570,-420.0,0.00032876,2]
[362430246,1748285466580,-420.0,0.00032876,2]
[362430247,1748285466589,-420.0,0.00032876,2]
[362430248,1748285466601,-420.0,0.00032876,2]
[362430249,1748285466612,-420.0,0.00032876,2]
[362430250,1748285466622,-420.0,0.00032876,2]
[362430251,1748285466633,-421.67810418,0.00032876,2]
[362430252,1748285466646,-420.0,0.00032876,2]
[362430253,1748285466656,-420.0,0.00032876,2]
[362430254,1748285466667,-420.0,0.00032876,2]
[362430255,1748285466677,-5038.73,0.00032876,2]
[362430256,1748285466689,-395.50290118,0.00032876,2]
[362430257,1748285466700,-420.0,0.00032876,2]
[362430258,1748285466712,-420.0,0.00032876,2]
[362430259,1748285466723,-420.0,0.00032876,2]
[362430260,1748285466733,-420.0,0.00032876,2]
[362430261,1748285466743,-1692.4,0.00032876,2]
[362430262,1748285466753,-420.0,0.00032876,2]
[362430263,1748285466764,-420.0,0.00032876,2]
[362430264,1748285466775,-420.0,0.00032876,2]
[362430265,1748285466787,-921.88,0.00032876,2]
[362430266,1748285466799,-420.0,0.00032876,2]
[362430267,1748285466810,-420.0,0.00032876,2]
[362430268,1748285466820,-42740.64,0.00032876,2]
[362430269,1748285466830,-420.0,0.00032876,2]
[362430270,1748285466839,-420.0,0.00032876,2]
[362430271,1748285466849,-420.0,0.00032876,2]
[362430272,1748285466859,-503.8562901,0.00032876,2]
[362430273,1748285466868,-420.0,0.00032876,2]
[362430274,1748285466879,-447.97873929,0.00032876,2]
[362430275,1748285466890,-420.0,0.00032876,2]
[362430276,1748285466900,-420.0,0.00032876,2]
[362430277,1748285466911,-420.0,0.00032876,2]
[362430278,1748285466921,-2375.54,0.00032876,2]
[362430279,1748285466931,-420.0,0.00032876,2]
[362430280,1748285466942,-420.0,0.00032876,2]
[362430281,1748285466951,-420.0,0.00032876,2]
[362430282,1748285466960,-420.0,0.00032876,2]
[362430283,1748285466970,-420.0,0.00032876,2]
[362430284,1748285466979,-420.0,0.00032876,2]
[362430285,1748285466988,-420.0,0.00032876,2]
[362430286,1748285466998,-420.0,0.00032876,2]
[362430287,1748285467007,-2823.67,0.00032876,2]
[362430288,1748285467017,-420.0,0.00032876,2]
[362430289,1748285467026,-420.0,0.00032876,2]
[362430290,1748285467036,-420.0,0.00032876,2]
[362430291,1748285467045,-3503.2,0.00032876,2]
[362430292,1748285467054,-420.0,0.00032876,2]
[362430293,1748285467064,-420.0,0.00032876,2]
[362430294,1748285467074,-420.0,0.00032876,2]
[362430295,1748285467084,-477.11,0.00032876,2]
[362430296,1748285467095,-3753.32,0.00032876,2]
[362430297,1748285467111,-420.0,0.00032876,2]
[362430298,1748285467120,-4868.62,0.00032876,2]
[362430299,1748285467130,-420.0,0.00032876,2]
[362430300,1748285467139,-420.0,0.00032876,2]
[362430301,1748285467148,-3212.52,0.00032876,2]
[362430302,1748285467158,-420.0,0.00032876,2]
[362430303,1748285467168,-420.0,0.00032876,2]
[362430304,1748285467177,-10864.3,0.00032876,2]
[362430305,1748285467186,-420.0,0.00032876,2]
[362430306,1748285467196,-420.0,0.00032876,2]
[362430307,1748285467205,-420.0,0.00032876,2]
[362430308,1748285467214,-490.71944115,0.00032876,2]
[362430309,1748285467224,-420.0,0.00032876,2]
[362430310,1748285467235,-420.0,0.00032876,2]
[362430311,1748285467244,-420.0,0.00032876,2]
[362430312,1748285467254,-420.0,0.00032876,2]
[362430313,1748285467265,-420.0,0.00032876,2]
[362430314,1748285467274,-517.75855263,0.00032876,2]
[362430315,1748285467284,-420.0,0.00032876,2]
[362430316,1748285467297,-334.20719217,0.00032876,2]
[362430317,1748285467307,-420.0,0.00032876,2]
[362430318,1748285467316,-420.0,0.00032876,2]
[362430319,1748285467326,-420.0,0.00032876,2]
[362430320,1748285467337,-420.0,0.00032876,2]
[362430321,1748285467346,-420.0,0.00032876,2]
[362430322,1748285467355,-420.0,0.00032876,2]
[362430323,1748285467365,-420.0,0.00032876,2]